[Event "December 12 Early 2023"]
[Site "https://www.chess.com"]
[Date "2023.12.12"]
[Round "9"]
[White "Zakhartsov, Vladimir"]
[Black "Haug, Havard"]
[Result "1-0"]
[Board "13"]
[TimeControl "180+1"]
[WhiteFideId "4145097"]
[BlackFideId "1547887"]
[WhiteElo "2926"]
[BlackElo "2766"]
[WhiteTeam "RUS"]
[BlackTeam "NOR"]
[WhiteClock "0:00:05"]
[BlackClock "0:00:00"]

1. d4 {[%clk 0:02:55]}  d5 {[%clk 0:02:58]} 2. c4 {[%clk 0:02:55]}  e6 {[%clk 0:02:57]} 3. Nf3 {[%clk 0:02:55]}  c5 {[%clk 0:02:56]} 4. cxd5 {[%clk 0:02:54]}  exd5 {[%clk 0:02:57]} 5. Nc3 {[%clk 0:02:54]}  Nf6 {[%clk 0:02:57]} 6. Bg5 {[%clk 0:02:54]}  Be6 {[%clk 0:02:57]} 7. e3 {[%clk 0:02:55]}  c4 {[%clk 0:02:56]} 8. Be2 {[%clk 0:02:52]}  Be7 {[%clk 0:02:56]} 9. O-O {[%clk 0:02:53]}  O-O {[%clk 0:02:56]} 10. b3 {[%clk 0:02:53]}  Qa5 {[%clk 0:02:50]} 11. Rc1 {[%clk 0:02:48]}  h6 {[%clk 0:02:25]} 12. Bxf6 {[%clk 0:02:44]}  Bxf6 {[%clk 0:02:26]} 13. bxc4 {[%clk 0:02:45]}  dxc4 {[%clk 0:02:27]} 14. Ne4 {[%clk 0:02:45]}  Be7 {[%clk 0:02:24]} 15. Bxc4 {[%clk 0:02:45]}  Bxc4 {[%clk 0:02:21]} 16. Rxc4 {[%clk 0:02:46]}  Qxa2 {[%clk 0:02:21]} 17. Rc7 {[%clk 0:02:46]}  Bd8 {[%clk 0:02:14]} 18. Rxb7 {[%clk 0:02:38]}  Qd5 {[%clk 0:02:13]} 19. Qb1 {[%clk 0:02:10]}  Bb6 {[%clk 0:02:11]} 20. Nc5 {[%clk 0:02:02]}  Bxc5 {[%clk 0:01:59]} 21. dxc5 {[%clk 0:02:00]}  Qxc5 {[%clk 0:02:00]} 22. Rc1 {[%clk 0:02:00]}  Qa5 {[%clk 0:01:42]} 23. Nd4 {[%clk 0:01:56]}  Qh5 {[%clk 0:01:30]} 24. h3 {[%clk 0:01:48]}  a5 {[%clk 0:01:29]} 25. Nf5 {[%clk 0:01:43]}  Na6 {[%clk 0:01:25]} 26. Qb5 {[%clk 0:01:20]}  Kh8 {[%clk 0:01:21]} 27. Qxa5 {[%clk 0:01:12]}  Nc7 {[%clk 0:01:19]} 28. Qe5 {[%clk 0:01:00]}  Ne6 {[%clk 0:01:18]} 29. Re7 {[%clk 0:01:01]}  Qg6 {[%clk 0:01:11]} 30. Nd6 {[%clk 0:00:58]}  Ng5 {[%clk 0:01:08]} 31. Kh2 {[%clk 0:00:53]}  Ra2 {[%clk 0:01:06]} 32. Rf1 {[%clk 0:00:49]}  Ra6 {[%clk 0:00:47]} 33. Nf5 {[%clk 0:00:45]}  Qf6 {[%clk 0:00:39]} 34. Qxf6 {[%clk 0:00:42]}  Rxf6 {[%clk 0:00:40]} 35. g4 {[%clk 0:00:42]}  g6 {[%clk 0:00:38]} 36. Nd4 {[%clk 0:00:35]}  Nf3+ {[%clk 0:00:37]} 37. Nxf3 {[%clk 0:00:32]}  Rxf3 {[%clk 0:00:38]} 38. Kg2 {[%clk 0:00:32]}  Rf6 {[%clk 0:00:39]} 39. Rd1 {[%clk 0:00:33]}  Kg7 {[%clk 0:00:37]} 40. Rdd7 {[%clk 0:00:34]}  Rb8 {[%clk 0:00:33]} 41. Rd2 {[%clk 0:00:34]}  Rbb6 {[%clk 0:00:32]} 42. Red7 {[%clk 0:00:34]}  g5 {[%clk 0:00:31]} 43. Kg3 {[%clk 0:00:33]}  Rb3 {[%clk 0:00:31]} 44. h4 {[%clk 0:00:33]}  Rb1 {[%clk 0:00:27]} 45. Rd1 {[%clk 0:00:29]}  Rb2 {[%clk 0:00:24]} 46. hxg5 {[%clk 0:00:16]}  Rfxf2 {[%clk 0:00:18]} 47. gxh6+ {[%clk 0:00:16]}  Kxh6 {[%clk 0:00:19]} 48. R7d6+ {[%clk 0:00:15]}  Kg7 {[%clk 0:00:18]} 49. Rg1 {[%clk 0:00:13]}  Rfe2 {[%clk 0:00:17]} 50. Rd3 {[%clk 0:00:11]}  Rb6 {[%clk 0:00:14]} 51. Rf1 {[%clk 0:00:11]}  Re6 {[%clk 0:00:13]} 52. Kf3 {[%clk 0:00:10]}  Rb2 {[%clk 0:00:12]} 53. Rd4 {[%clk 0:00:10]}  Rb3 {[%clk 0:00:11]} 54. Re1 {[%clk 0:00:10]}  Rb2 {[%clk 0:00:11]} 55. Rf4 {[%clk 0:00:10]}  Rh6 {[%clk 0:00:11]} 56. g5 {[%clk 0:00:10]}  Rh3+ {[%clk 0:00:10]} 57. Kg4 {[%clk 0:00:10]}  Rhh2 {[%clk 0:00:10]} 58. Ref1 {[%clk 0:00:10]}  Rbg2+ {[%clk 0:00:09]} 59. Kf5 {[%clk 0:00:10]}  Rh5 {[%clk 0:00:03]} 60. Ke4 {[%clk 0:00:10]}  Rhxg5 {[%clk 0:00:04]} 61. Rxf7+ {[%clk 0:00:10]}  Kg6 {[%clk 0:00:04]} 62. R1f6+ {[%clk 0:00:09]}  Kh5 {[%clk 0:00:05]} 63. Rh7+ {[%clk 0:00:08]}  Kg4 {[%clk 0:00:05]} 64. Rf4+ {[%clk 0:00:08]}  Kg3 {[%clk 0:00:06]} 65. Rf3+ {[%clk 0:00:05]}  Kg4 {[%clk 0:00:06]} 66. Rhf7 {[%clk 0:00:05]}  Ra2 {[%clk 0:00:06]} 67. R7f4+ {[%clk 0:00:05]}  Kh5 {[%clk 0:00:06]} 68. Rf5 {[%clk 0:00:05]}  Ra4+ {[%clk 0:00:05]} 69. Kd3 {[%clk 0:00:05]}  Rxf5 {[%clk 0:00:04]} 70. Rxf5+ {[%clk 0:00:05]}  Kg6 {[%clk 0:00:05]} 71. e4 {[%clk 0:00:05]}  Rb4 {[%clk 0:00:03]} 72. Ke3 {[%clk 0:00:05]}  Ra4 {[%clk 0:00:04]} 73. Rf1 {[%clk 0:00:05]}  Rb4 {[%clk 0:00:04]} 74. Kd3 {[%clk 0:00:05]}  Ra4 {[%clk 0:00:04]} 75. Rf2 {[%clk 0:00:05]}  Ra8 {[%clk 0:00:00]} 76. e5 {[%clk 0:00:05]} 1-0

[Event "December 12 Early 2023"]
[Site "https://www.chess.com"]
[Date "2023.12.12"]
[Round "9"]
[White "Weetik, Vjacheslav"]
[Black "Indjic, Aleksandar"]
[Result "1-0"]
[Board "14"]
[TimeControl "180+1"]
[WhiteFideId "4153472"]
[BlackFideId "911925"]
[WhiteElo "2774"]
[BlackElo "2915"]
[WhiteTeam "RUS"]
[BlackTeam "SRB"]
[WhiteClock "0:00:04"]
[BlackClock "0:00:05"]

1. d4 {[%clk 0:02:59]}  Nf6 {[%clk 0:02:53]} 2. Bf4 {[%clk 0:02:57]}  d6 {[%clk 0:02:52]} 3. Nf3 {[%clk 0:02:57]}  Nbd7 {[%clk 0:02:52]} 4. c4 {[%clk 0:02:56]}  Nh5 {[%clk 0:02:49]} 5. Bc1 {[%clk 0:02:50]}  e5 {[%clk 0:02:49]} 6. Nc3 {[%clk 0:02:50]}  g6 {[%clk 0:02:47]} 7. g3 {[%clk 0:02:32]}  Bg7 {[%clk 0:02:45]} 8. Bg2 {[%clk 0:02:32]}  O-O {[%clk 0:02:44]} 9. O-O {[%clk 0:02:32]}  f5 {[%clk 0:02:33]} 10. Bg5 {[%clk 0:02:26]}  Bf6 {[%clk 0:02:31]} 11. Bxf6 {[%clk 0:02:25]}  Nhxf6 {[%clk 0:02:26]} 12. dxe5 {[%clk 0:02:19]}  dxe5 {[%clk 0:02:26]} 13. e4 {[%clk 0:02:19]}  f4 {[%clk 0:01:27]} 14. gxf4 {[%clk 0:01:30]}  exf4 {[%clk 0:01:26]} 15. e5 {[%clk 0:01:27]}  Nh5 {[%clk 0:01:24]} 16. Qd5+ {[%clk 0:01:04]}  Kh8 {[%clk 0:01:22]} 17. e6 {[%clk 0:00:53]}  Ndf6 {[%clk 0:01:22]} 18. Qe5 {[%clk 0:00:53]}  Qe7 {[%clk 0:01:12]} 19. Nd5 {[%clk 0:00:44]}  Qxe6 {[%clk 0:01:11]} 20. Qxe6 {[%clk 0:00:44]}  Bxe6 {[%clk 0:01:11]} 21. Nxc7 {[%clk 0:00:45]}  Bxc4 {[%clk 0:01:11]} 22. Rfc1 {[%clk 0:00:45]}  Bd5 {[%clk 0:01:00]} 23. Nxa8 {[%clk 0:00:42]}  Rxa8 {[%clk 0:01:01]} 24. Rc7 {[%clk 0:00:41]}  Re8 {[%clk 0:00:55]} 25. Rac1 {[%clk 0:00:38]}  Bc6 {[%clk 0:00:47]} 26. Ng5 {[%clk 0:00:34]}  f3 {[%clk 0:00:28]} 27. Bxf3 {[%clk 0:00:34]}  Nf4 {[%clk 0:00:28]} 28. Bxc6 {[%clk 0:00:20]}  bxc6 {[%clk 0:00:29]} 29. Kf1 {[%clk 0:00:21]}  Ng4 {[%clk 0:00:10]} 30. Rxh7+ {[%clk 0:00:20]}  Kg8 {[%clk 0:00:09]} 31. Rh4 {[%clk 0:00:20]}  Nd3 {[%clk 0:00:05]} 32. Rxc6 {[%clk 0:00:07]}  Re1+ {[%clk 0:00:02]} 33. Kg2 {[%clk 0:00:08]}  Nge5 {[%clk 0:00:02]} 34. Rc8+ {[%clk 0:00:06]}  Kg7 {[%clk 0:00:03]} 35. Rc7+ {[%clk 0:00:05]}  Kf6 {[%clk 0:00:03]} 36. Nf3 {[%clk 0:00:04]}  Nxf3 {[%clk 0:00:03]} 37. Kxf3 {[%clk 0:00:05]}  Ne5+ {[%clk 0:00:03]} 38. Kg2 {[%clk 0:00:05]}  g5 {[%clk 0:00:04]} 39. Ra4 {[%clk 0:00:05]}  Re2 {[%clk 0:00:03]} 40. h3 {[%clk 0:00:05]}  Nd3 {[%clk 0:00:03]} 41. Rcxa7 {[%clk 0:00:05]}  Rxf2+ {[%clk 0:00:03]} 42. Kg3 {[%clk 0:00:05]}  Re2 {[%clk 0:00:04]} 43. R7a6+ {[%clk 0:00:05]}  Kf5 {[%clk 0:00:04]} 44. R4a5+ {[%clk 0:00:06]}  Ne5 {[%clk 0:00:04]} 45. Rb6 {[%clk 0:00:05]}  Re3+ {[%clk 0:00:05]} 46. Kg2 {[%clk 0:00:05]}  Kf4 {[%clk 0:00:05]} 47. Rf6+ {[%clk 0:00:04]}  Ke4 {[%clk 0:00:05]} 48. Re6 {[%clk 0:00:05]}  Re2+ {[%clk 0:00:04]} 49. Kf1 {[%clk 0:00:05]}  Kf3 {[%clk 0:00:05]} 50. Raxe5 {[%clk 0:00:05]}  Rf2+ {[%clk 0:00:06]} 51. Ke1 {[%clk 0:00:05]}  Rxb2 {[%clk 0:00:07]} 52. Rxg5 {[%clk 0:00:05]}  Kf4 {[%clk 0:00:05]} 53. Rge5 {[%clk 0:00:04]} 1-0

[Event "December 12 Early 2023"]
[Site "https://www.chess.com"]
[Date "2023.12.12"]
[Round "9"]
[White "Novozhilov, Semen"]
[Black "Ashraf, Artin"]
[Result "1-0"]
[Board "15"]
[TimeControl "180+1"]
[WhiteFideId "24289167"]
[BlackFideId "22514805"]
[WhiteElo "2764"]
[BlackElo "2909"]
[WhiteTeam "RUS"]
[BlackTeam "IRI"]
[WhiteClock "0:01:05"]
[BlackClock "0:00:00"]

1. d4 {[%clk 0:03:00]}  Nf6 {[%clk 0:02:52]} 2. Nf3 {[%clk 0:03:00]}  e6 {[%clk 0:02:43]} 3. e3 {[%clk 0:02:59]}  c5 {[%clk 0:02:39]} 4. Bd3 {[%clk 0:02:59]}  b6 {[%clk 0:02:39]} 5. O-O {[%clk 0:02:58]}  Bb7 {[%clk 0:02:39]} 6. b3 {[%clk 0:02:59]}  Nc6 {[%clk 0:02:39]} 7. Bb2 {[%clk 0:02:59]}  Rc8 {[%clk 0:02:38]} 8. c4 {[%clk 0:02:59]}  cxd4 {[%clk 0:02:36]} 9. exd4 {[%clk 0:02:59]}  d5 {[%clk 0:02:37]} 10. Nc3 {[%clk 0:02:59]}  Be7 {[%clk 0:02:35]} 11. Rc1 {[%clk 0:02:57]}  O-O {[%clk 0:02:34]} 12. Qe2 {[%clk 0:02:57]}  Re8 {[%clk 0:02:23]} 13. Rfd1 {[%clk 0:02:56]}  Bf8 {[%clk 0:02:22]} 14. h3 {[%clk 0:02:56]}  g6 {[%clk 0:02:22]} 15. Qe3 {[%clk 0:02:56]}  Bg7 {[%clk 0:02:21]} 16. Na4 {[%clk 0:02:49]}  Ba6 {[%clk 0:02:09]} 17. Ne5 {[%clk 0:02:29]}  dxc4 {[%clk 0:01:48]} 18. bxc4 {[%clk 0:02:27]}  Nd7 {[%clk 0:01:41]} 19. Nxc6 {[%clk 0:02:13]}  Rxc6 {[%clk 0:01:41]} 20. Qf3 {[%clk 0:02:14]}  Rc7 {[%clk 0:01:36]} 21. Ba3 {[%clk 0:02:06]}  Bb7 {[%clk 0:01:08]} 22. Qg3 {[%clk 0:02:00]}  Nf6 {[%clk 0:01:04]} 23. Bd6 {[%clk 0:01:58]}  Rd7 {[%clk 0:01:02]} 24. c5 {[%clk 0:01:59]}  Nh5 {[%clk 0:01:01]} 25. Qe3 {[%clk 0:01:56]}  Bc6 {[%clk 0:00:54]} 26. Nc3 {[%clk 0:01:51]}  Rxd6 {[%clk 0:00:28]} 27. cxd6 {[%clk 0:01:50]}  Qxd6 {[%clk 0:00:29]} 28. Bb5 {[%clk 0:01:48]}  Bxb5 {[%clk 0:00:22]} 29. Nxb5 {[%clk 0:01:49]}  Qb4 {[%clk 0:00:23]} 30. Nc7 {[%clk 0:01:43]}  Rd8 {[%clk 0:00:21]} 31. d5 {[%clk 0:01:37]}  e5 {[%clk 0:00:09]} 32. a3 {[%clk 0:01:33]}  Qe7 {[%clk 0:00:05]} 33. Nb5 {[%clk 0:01:33]}  Nf4 {[%clk 0:00:06]} 34. g3 {[%clk 0:01:26]}  Nxd5 {[%clk 0:00:03]} 35. Qb3 {[%clk 0:01:20]}  Nf6 {[%clk 0:00:02]} 36. Rc7 {[%clk 0:01:16]}  Rxd1+ {[%clk 0:00:01]} 37. Qxd1 {[%clk 0:01:17]}  Qe6 {[%clk 0:00:01]} 38. Qd8+ {[%clk 0:01:17]}  Bf8 {[%clk 0:00:02]} 39. Rc8 {[%clk 0:01:15]}  Nd7 {[%clk 0:00:02]} 40. g4 {[%clk 0:01:05]}  Kg7 {[%clk 0:00:01]} 41. Nc7 {[%clk 0:01:05]}  Qd6 {[%clk 0:00:00]} 42. Ne8+ {[%clk 0:01:05]} 1-0

[Event "December 12 Early 2023"]
[Site "https://www.chess.com"]
[Date "2023.12.12"]
[Round "9"]
[White "Demchenko, Anton"]
[Black "Sahib Singh"]
[Result "1-0"]
[Board "19"]
[TimeControl "180+1"]
[WhiteFideId "4160258"]
[BlackFideId "25618342"]
[WhiteElo "2887"]
[BlackElo "2646"]
[WhiteTeam "SLO"]
[BlackTeam "IND"]
[WhiteClock "0:01:07"]
[BlackClock "0:02:00"]

1. e4 {[%clk 0:02:53]}  e6 {[%clk 0:02:59]} 2. d4 {[%clk 0:02:52]}  d5 {[%clk 0:02:59]} 3. Nd2 {[%clk 0:02:52]}  c5 {[%clk 0:02:59]} 4. Ngf3 {[%clk 0:02:52]}  cxd4 {[%clk 0:02:58]} 5. exd5 {[%clk 0:02:51]}  Qxd5 {[%clk 0:02:58]} 6. Bc4 {[%clk 0:02:52]}  Qd6 {[%clk 0:02:58]} 7. O-O {[%clk 0:02:52]}  Nf6 {[%clk 0:02:59]} 8. Nb3 {[%clk 0:02:52]}  Nc6 {[%clk 0:02:59]} 9. Nbxd4 {[%clk 0:02:52]}  Nxd4 {[%clk 0:03:00]} 10. Nxd4 {[%clk 0:02:52]}  a6 {[%clk 0:03:01]} 11. Bb3 {[%clk 0:02:48]}  Qc7 {[%clk 0:03:00]} 12. Bg5 {[%clk 0:02:48]}  Bd7 {[%clk 0:02:57]} 13. Re1 {[%clk 0:02:39]}  O-O-O {[%clk 0:02:43]} 14. Qf3 {[%clk 0:02:14]}  Bd6 {[%clk 0:02:41]} 15. Re3 {[%clk 0:02:07]}  Kb8 {[%clk 0:02:27]} 16. h3 {[%clk 0:01:25]}  Be5 {[%clk 0:02:21]} 17. Rxe5 {[%clk 0:01:24]}  Ba4 {[%clk 0:02:00]} 18. c3 {[%clk 0:01:07]} 1-0

[Event "December 12 Early 2023"]
[Site "https://www.chess.com"]
[Date "2023.12.12"]
[Round "9"]
[White "Materia, Marco"]
[Black "Zeneli, Klendi"]
[Result "1-0"]
[Board "21"]
[TimeControl "180+1"]
[WhiteFideId "45150451"]
[BlackFideId "4706609"]
[WhiteElo "2842"]
[BlackElo "2408"]
[WhiteTeam "FRA"]
[BlackTeam "ALB"]
[WhiteClock "0:01:37"]
[BlackClock "0:00:58"]

1. Nf3 {[%clk 0:03:00]}  d5 {[%clk 0:03:00]} 2. e3 {[%clk 0:03:00]}  Nf6 {[%clk 0:02:59]} 3. c4 {[%clk 0:03:00]}  c6 {[%clk 0:02:59]} 4. b3 {[%clk 0:03:00]}  g6 {[%clk 0:02:58]} 5. Bb2 {[%clk 0:03:00]}  Bg7 {[%clk 0:02:59]} 6. Be2 {[%clk 0:03:01]}  O-O {[%clk 0:02:59]} 7. O-O {[%clk 0:03:01]}  Nbd7 {[%clk 0:02:59]} 8. d4 {[%clk 0:02:55]}  Ne4 {[%clk 0:02:57]} 9. Nc3 {[%clk 0:02:54]}  Nxc3 {[%clk 0:02:52]} 10. Bxc3 {[%clk 0:02:54]}  Nf6 {[%clk 0:02:52]} 11. Rc1 {[%clk 0:02:45]}  Ne4 {[%clk 0:02:52]} 12. Bb2 {[%clk 0:02:40]}  a5 {[%clk 0:02:52]} 13. Nd2 {[%clk 0:02:40]}  Bf5 {[%clk 0:02:46]} 14. cxd5 {[%clk 0:02:33]}  cxd5 {[%clk 0:02:42]} 15. Nxe4 {[%clk 0:02:30]}  Bxe4 {[%clk 0:02:41]} 16. Ba3 {[%clk 0:02:26]}  a4 {[%clk 0:02:37]} 17. bxa4 {[%clk 0:02:25]}  Bf6 {[%clk 0:02:29]} 18. Qb3 {[%clk 0:02:23]}  Qa5 {[%clk 0:02:23]} 19. Bb5 {[%clk 0:02:10]}  Rfc8 {[%clk 0:02:21]} 20. Bb4 {[%clk 0:02:07]}  Qb6 {[%clk 0:02:18]} 21. Bc5 {[%clk 0:02:03]}  Qa5 {[%clk 0:02:17]} 22. Bd7 {[%clk 0:01:58]}  Rd8 {[%clk 0:02:08]} 23. Bb6 {[%clk 0:01:57]}  Qd2 {[%clk 0:01:47]} 24. Bxd8 {[%clk 0:01:56]}  Rxd8 {[%clk 0:01:48]} 25. Qxb7 {[%clk 0:01:52]}  Bh4 {[%clk 0:01:41]} 26. Rc8 {[%clk 0:01:49]}  Rxc8 {[%clk 0:01:19]} 27. Qxc8+ {[%clk 0:01:49]}  Kg7 {[%clk 0:01:20]} 28. Bb5 {[%clk 0:01:43]}  Bd3 {[%clk 0:01:03]} 29. Bxd3 {[%clk 0:01:41]}  Qxd3 {[%clk 0:01:04]} 30. g3 {[%clk 0:01:37]}  Bf6 {[%clk 0:01:03]} 31. a5 {[%clk 0:01:38]}  Qa3 {[%clk 0:01:01]} 32. a6 {[%clk 0:01:37]}  Qxa2 {[%clk 0:01:01]} 33. Qb7 {[%clk 0:01:37]}  e5 {[%clk 0:01:01]} 34. dxe5 {[%clk 0:01:37]}  Bxe5 {[%clk 0:00:58]} 35. a7 {[%clk 0:01:37]} 1-0

[Event "December 12 Early 2023"]
[Site "https://www.chess.com"]
[Date "2023.12.12"]
[Round "9"]
[White "Maksimovic, Bojan"]
[Black "Atakhan, Abtin"]
[Result "0-1"]
[Board "24"]
[TimeControl "180+1"]
[WhiteFideId "14408120"]
[BlackFideId "22502203"]
[WhiteElo "2901"]
[BlackElo "2747"]
[WhiteTeam "BIH"]
[BlackTeam "IRI"]
[WhiteClock "0:00:00"]
[BlackClock "0:00:02"]

1. a3 {[%clk 0:03:00]}  g6 {[%clk 0:02:58]} 2. e4 {[%clk 0:02:58]}  Bg7 {[%clk 0:02:56]} 3. d4 {[%clk 0:02:58]}  d6 {[%clk 0:02:46]} 4. Nc3 {[%clk 0:02:58]}  Nf6 {[%clk 0:02:38]} 5. Bc4 {[%clk 0:02:57]}  O-O {[%clk 0:02:37]} 6. Qe2 {[%clk 0:02:57]}  Nc6 {[%clk 0:02:30]} 7. d5 {[%clk 0:02:40]}  Nd4 {[%clk 0:02:08]} 8. Qd1 {[%clk 0:02:40]}  c5 {[%clk 0:02:06]} 9. Be3 {[%clk 0:02:37]}  Rb8 {[%clk 0:02:04]} 10. a4 {[%clk 0:02:18]}  Ng4 {[%clk 0:01:59]} 11. Nf3 {[%clk 0:01:58]}  Nxf3+ {[%clk 0:01:50]} 12. Qxf3 {[%clk 0:01:50]}  Nxe3 {[%clk 0:01:43]} 13. Qxe3 {[%clk 0:01:51]}  a6 {[%clk 0:01:43]} 14. O-O {[%clk 0:01:48]}  Bd7 {[%clk 0:01:43]} 15. Qd3 {[%clk 0:01:40]}  Qa5 {[%clk 0:01:35]} 16. Rfb1 {[%clk 0:01:29]}  f5 {[%clk 0:01:04]} 17. f3 {[%clk 0:01:17]}  f4 {[%clk 0:00:51]} 18. Ne2 {[%clk 0:01:15]}  Be5 {[%clk 0:00:49]} 19. c3 {[%clk 0:01:15]}  Qc7 {[%clk 0:00:45]} 20. a5 {[%clk 0:01:14]}  g5 {[%clk 0:00:45]} 21. h3 {[%clk 0:01:12]}  h5 {[%clk 0:00:44]} 22. Kf2 {[%clk 0:01:12]}  Rf7 {[%clk 0:00:40]} 23. Ke1 {[%clk 0:01:13]}  g4 {[%clk 0:00:39]} 24. hxg4 {[%clk 0:01:12]}  hxg4 {[%clk 0:00:40]} 25. Kd2 {[%clk 0:01:13]}  Rg7 {[%clk 0:00:36]} 26. Kc2 {[%clk 0:00:59]}  Rf8 {[%clk 0:00:27]} 27. Rh1 {[%clk 0:00:46]}  Rff7 {[%clk 0:00:25]} 28. Rh5 {[%clk 0:00:46]}  Rg6 {[%clk 0:00:24]} 29. Nc1 {[%clk 0:00:21]}  Rh7 {[%clk 0:00:22]} 30. Rxh7 {[%clk 0:00:21]}  Kxh7 {[%clk 0:00:23]} 31. Nb3 {[%clk 0:00:20]}  Rh6 {[%clk 0:00:24]} 32. Rg1 {[%clk 0:00:18]}  Qd8 {[%clk 0:00:23]} 33. Kb1 {[%clk 0:00:19]}  Qe8 {[%clk 0:00:21]} 34. Qd1 {[%clk 0:00:19]}  Qh5 {[%clk 0:00:20]} 35. Be2 {[%clk 0:00:18]}  Qh2 {[%clk 0:00:19]} 36. Nd2 {[%clk 0:00:18]}  Ba4 {[%clk 0:00:16]} 37. b3 {[%clk 0:00:19]}  Bxc3 {[%clk 0:00:16]} 38. bxa4 {[%clk 0:00:10]}  Bxd2 {[%clk 0:00:16]} 39. Kc2 {[%clk 0:00:11]}  Be3 {[%clk 0:00:16]} 40. Re1 {[%clk 0:00:08]}  g3 {[%clk 0:00:15]} 41. Bf1 {[%clk 0:00:08]}  Qg1 {[%clk 0:00:13]} 42. e5 {[%clk 0:00:08]}  Kg7 {[%clk 0:00:08]} 43. exd6 {[%clk 0:00:06]}  Rxd6 {[%clk 0:00:09]} 44. Qd3 {[%clk 0:00:04]}  Qf2+ {[%clk 0:00:08]} 45. Re2 {[%clk 0:00:02]}  Qxf1 {[%clk 0:00:08]} 46. Rxe3 {[%clk 0:00:02]}  Qxg2+ {[%clk 0:00:06]} 47. Re2 {[%clk 0:00:02]}  Qh3 {[%clk 0:00:04]} 48. Rxe7+ {[%clk 0:00:03]}  Kf8 {[%clk 0:00:04]} 49. Qe4 {[%clk 0:00:03]}  Qh5 {[%clk 0:00:02]} 50. Re6 {[%clk 0:00:02]}  Qxd5 {[%clk 0:00:02]} 51. Re8+ {[%clk 0:00:02]}  Kf7 {[%clk 0:00:01]} 52. Qe7+ {[%clk 0:00:00]}  Kg6 {[%clk 0:00:02]} 0-1

[Event "December 12 Early 2023"]
[Site "https://www.chess.com"]
[Date "2023.12.12"]
[Round "9"]
[White "Samunenkov, Ihor"]
[Black "Baskakov, Egor"]
[Result "1-0"]
[Board "25"]
[TimeControl "180+1"]
[WhiteFideId "14187086"]
[BlackFideId "24197866"]
[WhiteElo "2747"]
[BlackElo "2889"]
[WhiteTeam "UKR"]
[BlackTeam "RUS"]
[WhiteClock "0:00:09"]
[BlackClock "0:00:16"]

1. d4 {[%clk 0:03:00]}  Nf6 {[%clk 0:02:58]} 2. Nc3 {[%clk 0:03:01]}  e6 {[%clk 0:02:59]} 3. Bf4 {[%clk 0:03:01]}  d5 {[%clk 0:03:00]} 4. Nb5 {[%clk 0:03:00]}  Bd6 {[%clk 0:03:00]} 5. Nxd6+ {[%clk 0:02:59]}  cxd6 {[%clk 0:03:01]} 6. e3 {[%clk 0:03:00]}  Nc6 {[%clk 0:03:02]} 7. Nf3 {[%clk 0:02:59]}  O-O {[%clk 0:03:03]} 8. h3 {[%clk 0:02:58]}  Ne4 {[%clk 0:03:01]} 9. Be2 {[%clk 0:02:50]}  Bd7 {[%clk 0:02:57]} 10. O-O {[%clk 0:02:49]}  Rc8 {[%clk 0:02:58]} 11. Nd2 {[%clk 0:02:42]}  Qe7 {[%clk 0:02:49]} 12. Bh2 {[%clk 0:02:20]}  f5 {[%clk 0:02:40]} 13. c4 {[%clk 0:02:16]}  dxc4 {[%clk 0:02:32]} 14. Bxc4 {[%clk 0:02:01]}  d5 {[%clk 0:02:31]} 15. Be2 {[%clk 0:01:59]}  Qb4 {[%clk 0:02:30]} 16. Nxe4 {[%clk 0:01:55]}  fxe4 {[%clk 0:02:28]} 17. a3 {[%clk 0:01:47]}  Qe7 {[%clk 0:02:23]} 18. Qd2 {[%clk 0:01:43]}  b6 {[%clk 0:02:14]} 19. b4 {[%clk 0:01:37]}  Nd8 {[%clk 0:02:07]} 20. Ba6 {[%clk 0:01:32]}  Rc6 {[%clk 0:02:01]} 21. Rac1 {[%clk 0:01:27]}  Qe8 {[%clk 0:01:47]} 22. Rxc6 {[%clk 0:01:18]}  Bxc6 {[%clk 0:01:48]} 23. Rc1 {[%clk 0:01:13]}  Bb5 {[%clk 0:01:46]} 24. Bxb5 {[%clk 0:00:59]}  Qxb5 {[%clk 0:01:47]} 25. Rc7 {[%clk 0:00:59]}  a5 {[%clk 0:01:25]} 26. Bd6 {[%clk 0:00:52]}  Re8 {[%clk 0:01:22]} 27. bxa5 {[%clk 0:00:46]}  bxa5 {[%clk 0:01:21]} 28. Qc2 {[%clk 0:00:43]}  Nf7 {[%clk 0:01:20]} 29. Bg3 {[%clk 0:00:42]}  a4 {[%clk 0:01:16]} 30. Ra7 {[%clk 0:00:35]}  Qd3 {[%clk 0:00:49]} 31. Qc7 {[%clk 0:00:31]}  Qd1+ {[%clk 0:00:49]} 32. Kh2 {[%clk 0:00:32]}  Qh5 {[%clk 0:00:49]} 33. Qd7 {[%clk 0:00:26]}  Rf8 {[%clk 0:00:45]} 34. Qxe6 {[%clk 0:00:25]}  h6 {[%clk 0:00:40]} 35. Rxa4 {[%clk 0:00:21]}  Kh7 {[%clk 0:00:38]} 36. Qg4 {[%clk 0:00:20]}  Qxg4 {[%clk 0:00:34]} 37. hxg4 {[%clk 0:00:21]}  h5 {[%clk 0:00:27]} 38. gxh5 {[%clk 0:00:20]}  Rd8 {[%clk 0:00:27]} 39. Bf4 {[%clk 0:00:19]}  g6 {[%clk 0:00:26]} 40. Ra7 {[%clk 0:00:18]}  Kg7 {[%clk 0:00:23]} 41. Be5+ {[%clk 0:00:17]}  Kg8 {[%clk 0:00:22]} 42. hxg6 {[%clk 0:00:18]}  Nxe5 {[%clk 0:00:23]} 43. dxe5 {[%clk 0:00:18]}  Re8 {[%clk 0:00:23]} 44. a4 {[%clk 0:00:13]}  Rxe5 {[%clk 0:00:24]} 45. a5 {[%clk 0:00:12]}  d4 {[%clk 0:00:24]} 46. exd4 {[%clk 0:00:12]}  Rd5 {[%clk 0:00:24]} 47. a6 {[%clk 0:00:12]}  Ra5 {[%clk 0:00:23]} 48. g7 {[%clk 0:00:10]}  e3 {[%clk 0:00:17]} 49. fxe3 {[%clk 0:00:09]}  Rh5+ {[%clk 0:00:17]} 50. Kg1 {[%clk 0:00:10]}  Rg5 {[%clk 0:00:16]} 51. Rb7 {[%clk 0:00:09]} 1-0